bitfinex/quotes_ETHUSD_20241122
["timestamp","ask_amount","ask_price","bid_price","bid_amount"]
[1732275527996,1.08981,3336.5,3335.2,0.299]
[1732275528573,0.7675,3337.1,3335.4,0.299]
[1732275528787,0.7675,3337.1,3335.8,0.299]
[1732275528788,3.24230144,3337.0,3335.8,0.299]
[1732275528980,2.99672,3337.0,3336.0,0.299]
[1732275529792,3.26785811,3337.2,3336.0,0.299]
[1732275530000,6.89081692,3337.2,3336.1,0.299]
[1732275530985,0.47232969,3337.1,3336.2,0.299]
[1732275531161,3.89429692,3337.2,3336.2,0.299]
[1732275531930,3.89429692,3337.2,3335.8,0.299]
[1732275532083,3.89429692,3337.2,3336.0,0.299]
[1732275533126,3.89429692,3337.2,3335.6,0.299]
[1732275533296,3.89429692,3337.2,3336.1,0.299]
[1732275533499,3.26785811,3337.2,3336.3,0.299]
[1732275534391,3.26785811,3337.2,3336.1,0.299]
[1732275535342,3.26785811,3336.9,3336.1,0.299]
[1732275535509,0.70633081,3336.8,3336.2,0.299]
[1732275536021,3.26785811,3336.9,3336.2,0.299]
[1732275536527,6.26472811,3336.9,3336.0,0.299]
[1732275536725,3.26785811,3336.9,3336.0,0.299]
[1732275536890,0.40665581,3336.8,3336.0,0.299]
[1732275537633,3.40356581,3336.8,3336.0,0.299]
[1732275537787,0.40665581,3336.8,3336.0,0.299]
[1732275538428,3.26785811,3336.6,3336.0,0.299]
[1732275538643,3.26785811,3336.6,3336.1,0.299]
[1732275538794,6.26492811,3336.6,3336.1,0.299]
[1732275539124,3.26785811,3336.6,3336.1,0.299]
[1732275539621,3.26785811,3336.6,3335.5,0.299]
[1732275539829,0.62648781,3336.5,3335.5,0.299]
[1732275540787,0.62648781,3336.5,3335.2,0.299]
[1732275541040,0.62648781,3336.5,3335.5,0.299]
[1732275541217,2.99688,3336.8,3335.7,0.299]
[1732275542332,2.99688,3336.8,3335.5,0.299]
[1732275543490,2.99694,3336.8,3335.5,0.299]
[1732275543696,0.92615381,3336.7,3335.5,0.299]
[1732275543893,3.92313381,3336.7,3335.5,0.299]
[1732275544317,0.92615381,3336.7,3335.5,0.299]
[1732275544530,6.26492811,3336.6,3335.2,0.299]
[1732275544829,2.99716,3336.5,3335.5,0.299]
[1732275545030,0.71910819,3336.5,3335.5,0.299]
[1732275545702,0.71910819,3336.5,3335.6,0.299]
[1732275546709,3.26785811,3337.0,3335.7,0.299]
[1732275546902,2.99655,3337.2,3335.7,3.299]
[1732275547202,0.92607981,3337.1,3335.9,0.299]
[1732275547937,6.26460811,3337.0,3335.9,0.299]
[1732275548109,3.26785811,3337.0,3335.8,0.299]
[1732275548308,6.26460811,3337.0,3335.8,0.299]
[1732275548532,1.01872579,3336.9,3335.8,0.299]
[1732275549461,1.01872579,3336.9,3335.4,0.02997565]
[1732275549462,6.26421811,3337.4,3335.9,0.32897563]
[1732275549752,3.26785811,3337.4,3336.1,0.299]
[1732275550086,3.26785811,3337.7,3336.1,3.299]
[1732275550208,3.26785811,3337.7,3335.7,0.02997143]
[1732275550209,0.64975972,3337.6,3336.3,0.299]
[1732275550410,3.39998581,3337.6,3336.3,0.299]
[1732275551138,2.99625,3337.5,3336.3,0.299]
[1732275551333,2.99625,3337.5,3335.7,0.02997143]
[1732275551544,2.99625,3337.5,3335.8,0.299]
[1732275551751,0.96639539,3337.4,3336.2,0.299]
[1732275552660,0.96639539,3337.4,3335.7,0.02997109]
[1732275553344,0.96639539,3337.4,3335.9,0.299]
[1732275553716,0.96639539,3337.4,3336.1,0.299]
[1732275553928,2.99625,3337.5,3336.1,3.299]
[1732275554634,0.40376581,3337.6,3335.7,0.299]
[1732275554850,0.74375039,3337.5,3336.1,0.299]
[1732275555642,3.74002039,3337.5,3336.1,0.299]
[1732275555842,3.26785811,3337.4,3335.3,0.3289711]
[1732275556168,2.99649,3337.3,3336.2,0.299]
[1732275556661,4.30863954,3337.4,3336.2,0.299]
[1732275556863,3.26785811,3337.4,3336.2,0.299]
[1732275557161,3.26785811,3337.4,3336.3,0.299]
[1732275558057,3.26785811,3337.4,3335.5,0.02997109]
[1732275558359,3.26785811,3337.4,3335.6,0.299]
[1732275558523,3.26785811,3337.0,3336.2,0.299]
[1732275559652,3.26785811,3337.0,3335.8,0.299]
[1732275560727,3.26785811,3337.0,3335.8,3.299]
[1732275560927,3.26785811,3337.0,3336.0,0.299]
[1732275561361,3.26785811,3337.3,3336.0,0.299]
[1732275562037,3.26785811,3337.3,3335.8,0.299]
[1732275562645,6.26433811,3337.3,3335.8,0.299]
[1732275562959,3.26785811,3337.3,3336.0,0.299]
[1732275563858,3.26785811,3337.3,3335.8,0.32897317]
[1732275564064,3.26785811,3337.3,3336.0,0.299]
[1732275564267,3.89427392,3337.3,3336.0,0.299]
[1732275564561,2.99655,3337.2,3336.0,0.299]
[1732275565101,6.89072392,3337.3,3336.0,0.299]
[1732275565224,0.98871039,3337.2,3336.0,3.7389]
[1732275565940,2.99661,3337.1,3336.0,3.7389]
[1732275566138,3.26785811,3336.9,3336.1,0.299]
[1732275566750,2.99688,3336.8,3336.1,0.299]
[1732275567264,3.26785811,3336.9,3335.3,0.32897547]
[1732275567581,3.26785811,3336.9,3335.7,3.299]
[1732275568430,3.26785811,3336.9,3335.7,0.299]
[1732275568625,3.26785811,3336.9,3335.9,0.299]
[1732275570559,3.26785811,3336.9,3335.5,0.299]
[1732275570871,3.26785811,3336.9,3335.4,0.55]
[1732275570872,0.62645781,3336.8,3335.9,0.299]
[1732275571076,6.26470811,3336.9,3335.9,0.299]
[1732275571796,3.26785811,3336.9,3335.9,0.299]
[1732275572159,3.26785811,3336.1,3335.2,0.299]
[1732275572500,0.62652081,3336.0,3335.2,0.299]
[1732275573055,7.07720811,3336.5,3335.2,0.299]
[1732275573297,3.24337491,3336.4,3334.6,0.299]
[1732275573476,2.99725,3336.4,3334.6,0.32898079]
[1732275573685,0.7323433,3336.3,3334.8,0.299]
[1732275574001,0.7323433,3336.3,3335.2,0.299]
[1732275574561,3.7297333,3336.3,3335.2,0.299]
[1732275574791,0.78097914,3336.2,3335.2,0.299]
[1732275574974,0.78097914,3336.2,3335.1,0.299]
[1732275575301,2.99739,3336.3,3335.1,0.299]
[1732275576198,2.99743,3336.2,3334.8,0.299]
[1732275576363,6.26540811,3336.1,3334.9,0.55]
[1732275576704,3.26785811,3336.1,3334.9,0.55]
[1732275576863,3.89438692,3336.1,3334.9,0.55]
[1732275577492,3.89438692,3336.1,3334.9,0.849]
[1732275578206,3.26785811,3336.1,3334.9,0.849]
[1732275581160,6.26538811,3336.1,3334.9,0.849]
[1732275581363,3.26785811,3336.1,3334.9,0.849]
[1732275581597,3.26785811,3336.1,3334.8,0.299]
[1732275581974,6.26540811,3336.1,3335.0,3.0]
[1732275582300,0.62652981,3336.0,3335.0,3.0]
[1732275582467,3.62413981,3336.0,3334.8,0.299]
[1732275583496,3.7969,3335.9,3334.8,0.299]
[1732275583705,0.76912879,3335.8,3334.8,0.299]
[1732275584107,0.76912879,3335.8,3334.7,0.55]
[1732275584108,0.76912879,3335.8,3334.9,3.299]
[1732275584806,0.76912879,3335.8,3334.9,0.299]
[1732275584807,2.99796,3335.6,3334.9,0.299]
[1732275585022,0.70349469,3335.5,3334.9,0.299]
[1732275585303,6.26579811,3335.7,3335.0,0.299]
[1732275585805,2.99798,3335.6,3335.0,0.299]
[1732275586104,2.99798,3335.6,3334.3,0.299]
[1732275586317,2.99807,3335.5,3334.5,0.299]
[1732275586610,4.03277908,3335.5,3334.5,0.299]
[1732275587214,4.03277908,3335.5,3334.3,0.299]
[1732275587508,6.26576811,3335.7,3334.5,0.299]
[1732275587711,2.99801,3335.6,3334.5,0.299]
[1732275587878,4.00429681,3335.6,3334.5,0.299]
[1732275588514,1.00628681,3335.6,3334.5,0.299]
[1732275589299,4.00426681,3335.6,3334.5,0.299]
[1732275590395,4.00426681,3335.6,3334.4,0.55]
[1732275590714,2.99798,3335.6,3334.5,0.299]
[1732275591412,3.26785811,3335.4,3334.5,0.299]
[1732275591612,3.26785811,3335.4,3334.7,0.299]
[1732275592526,3.26785811,3335.4,3334.8,0.299]
[1732275593579,3.26785811,3335.4,3334.3,0.299]
[1732275593811,6.26577811,3335.7,3334.3,0.299]
[1732275594017,6.94525511,3335.7,3334.3,0.299]
[1732275594219,2.99797,3335.6,3334.3,0.299]
[1732275594517,2.99797,3335.6,3334.5,0.299]
[1732275594713,4.07221251,3335.6,3334.5,0.6839]
[1732275595027,3.26785811,3335.3,3334.5,0.299]
[1732275595484,3.26785811,3335.3,3334.1,0.299]
[1732275595686,3.26785811,3335.3,3334.5,0.299]
[1732275596817,3.26785811,3335.3,3334.6,0.299]
[1732275598792,3.26785811,3335.3,3334.5,0.299]
[1732275599001,3.26785811,3335.3,3334.5,0.61449492]
[1732275600085,3.26785811,3335.3,3334.5,0.299]
[1732275600281,3.26785811,3335.7,3334.7,0.299]
[1732275600990,5.99457,3336.4,3334.9,0.299]
[1732275600991,3.26785811,3336.0,3334.9,0.299]
[1732275602721,3.26785811,3335.7,3334.9,0.299]
[1732275603019,3.26785811,3335.4,3334.7,0.299]
[1732275603731,3.26785811,3335.7,3334.7,0.299]
[1732275604020,3.26785811,3335.7,3334.7,0.6289]
[1732275604244,3.26785811,3335.7,3334.7,0.63431198]
[1732275604550,3.26785811,3335.7,3334.8,0.299]
[1732275605434,3.26785811,3335.7,3334.9,0.299]
[1732275606327,3.26785811,3335.3,3334.9,0.299]
[1732275606509,3.59464392,3335.3,3335.0,0.299]
[1732275606716,3.26785811,3335.3,3335.0,0.299]
[1732275607387,4.07715811,3335.3,3334.7,0.00541198]
[1732275607618,3.68511851,3335.2,3334.7,0.00541198]
[1732275608089,3.2774027,3335.2,3334.7,0.00541198]
[1732275609886,3.2774027,3335.6,3334.7,0.00541198]
[1732275610324,3.2774027,3336.0,3334.7,0.03539766]
[1732275610830,0.8185,3337.9,3335.1,0.299]
[1732275611003,3.2774027,3337.1,3335.5,0.299]
[1732275611203,3.2774027,3337.1,3335.7,0.299]
[1732275611393,3.2774027,3337.1,3335.8,0.02997106]
[1732275611699,3.2774027,3337.4,3335.8,0.02997106]
[1732275612030,2.99607,3337.7,3335.8,0.02997106]
[1732275612031,0.599198,3337.6,3335.9,0.299]
[1732275612191,0.599198,3337.6,3336.1,0.299]
[1732275612394,3.2774027,3337.7,3336.2,0.02996926]
[1732275612597,6.2734827,3337.7,3336.2,0.02996926]
[1732275613129,3.2774027,3337.7,3336.2,0.02996926]
[1732275613299,3.2774027,3338.0,3336.2,0.57996926]
[1732275613500,3.2774027,3338.3,3336.5,0.299]
[1732275613725,0.7508,3338.4,3336.7,0.299]
[1732275613894,3.2774027,3338.3,3336.9,0.299]
[1732275614224,3.2774027,3337.1,3336.3,0.299]
[1732275614431,2.99679,3336.9,3336.3,0.299]
[1732275614825,0.7902,3337.0,3335.4,0.299]
[1732275615002,0.7902,3337.0,3335.4,0.32897407]
[1732275615197,3.78695,3337.0,3335.4,0.299]
[1732275615398,0.70642327,3336.9,3335.4,0.299]
[1732275615899,0.70642327,3336.9,3335.5,0.02997418]
[1732275616105,0.7902,3337.0,3335.5,0.299]
[1732275617091,0.7902,3337.0,3335.5,0.32897418]
[1732275617921,3.0,3337.8,3335.5,0.32897418]
[1732275617922,0.7912,3338.2,3336.1,0.299]
[1732275618124,0.7912,3338.2,3336.5,0.299]
[1732275618125,3.2774027,3338.0,3336.5,0.299]
[1732275619005,6.2732027,3338.0,3336.5,0.299]
[1732275619710,2.996,3337.8,3336.5,0.299]
[1732275619912,2.99591,3337.9,3336.5,0.299]
[1732275620123,3.70235027,3337.9,3336.5,0.299]
[1732275620615,0.70644027,3337.9,3336.5,0.299]
[1732275621412,0.70644027,3337.9,3336.3,0.299]
[1732275621815,3.70236027,3337.9,3336.3,0.299]
[1732275622138,3.9935493,3337.8,3336.3,0.299]
[1732275622302,2.99619,3337.6,3336.1,0.299]
[1732275622503,2.99619,3337.6,3336.3,0.299]
[1732275622808,0.9975493,3337.8,3336.3,0.299]
[1732275623109,0.9975493,3337.8,3336.4,0.02996831]
[1732275623312,0.9975493,3337.8,3336.3,0.299]
[1732275623724,3.2774027,3338.0,3336.4,0.02996829]
[1732275624038,2.9959,3337.9,3336.3,0.299]
[1732275624212,6.2732727,3338.0,3336.3,0.299]
[1732275624413,6.2732727,3338.0,3336.5,0.299]
[1732275624414,3.2774027,3338.0,3336.5,0.299]
[1732275625536,3.2774027,3338.0,3336.2,0.32896533]
[1732275625841,3.2774027,3338.0,3336.5,0.849]
[1732275626144,0.7619,3338.6,3336.6,0.0299653]
[1732275626306,0.7619,3338.9,3337.0,3.5764027]
[1732275626502,6.2723127,3339.0,3337.1,3.57995785]
[1732275626722,6.2723127,3339.0,3337.1,3.87895785]
[1732275627215,6.2723127,3339.0,3337.3,0.299]
[1732275627216,2.99517,3338.8,3337.3,0.299]
[1732275627637,6.2726527,3338.7,3337.3,0.299]
[1732275627837,3.2774027,3338.4,3336.9,0.299]
[1732275628015,3.2774027,3338.4,3336.8,0.55]
[1732275628016,0.40393027,3338.3,3337.1,0.299]
[1732275628214,3.39951027,3338.3,3337.1,0.299]
[1732275628412,0.40393027,3338.3,3337.1,0.299]
[1732275630305,2.9953,3338.6,3337.1,0.299]
[1732275630512,6.2726027,3338.7,3337.1,0.299]
[1732275630937,2.99529,3338.6,3337.1,0.299]
[1732275631437,2.99512,3338.8,3337.2,0.0299592]
[1732275631657,2.99512,3338.8,3337.4,0.299]
[1732275631811,2.99512,3338.8,3337.4,0.32896017]
[1732275632139,2.99512,3338.8,3337.4,0.32895747]
[1732275632349,2.99512,3338.8,3337.4,0.299]
[1732275632702,0.92674527,3338.7,3337.4,0.299]
[1732275633214,3.2774027,3339.0,3337.4,0.299]
[1732275634957,2.99506,3338.9,3337.4,0.299]
[1732275635456,3.2774027,3339.0,3337.4,0.299]
[1732275635612,2.99504,3338.9,3337.4,0.299]
[1732275636065,3.92176727,3338.9,3337.4,0.299]
[1732275636218,6.2726327,3338.7,3337.4,0.299]
[1732275636426,6.2726327,3338.7,3337.5,0.299]
[1732275636825,2.99528,3338.6,3337.5,0.299]
[1732275637031,0.92679127,3338.5,3337.5,0.299]
[1732275637342,0.92679127,3338.5,3337.2,0.299]
[1732275637527,2.99528,3338.6,3337.2,0.299]
[1732275637725,3.2774027,3338.7,3337.2,0.299]
[1732275637964,3.2774027,3338.7,3337.2,0.32895943]
[1732275638266,3.2774027,3338.7,3337.4,0.299]
[1732275639268,3.2774027,3338.7,3337.3,0.299]
[1732275639869,3.2774027,3338.7,3337.5,0.299]
[1732275640531,4.0974027,3339.4,3337.7,0.299]
[1732275640724,3.2774027,3339.4,3337.9,0.299]
[1732275640929,3.2774027,3339.7,3338.1,0.299]
[1732275641128,3.2774027,3339.7,3338.3,0.299]
[1732275641361,3.90455097,3339.7,3338.3,0.299]
[1732275641677,0.62714827,3339.7,3338.3,3.299]
[1732275641876,0.62714827,3339.7,3338.3,0.299]
[1732275642171,0.62714827,3339.7,3338.2,0.0299502]
[1732275642459,0.62714827,3339.7,3338.3,0.299]
[1732275643239,0.62714827,3339.7,3338.4,0.299]
[1732275644475,0.62714827,3339.7,3338.3,0.299]
[1732275644677,2.99419,3339.8,3338.3,0.299]
[1732275645691,2.9943,3339.7,3338.5,0.299]
[1732275646053,3.2774027,3339.4,3338.5,0.299]
[1732275646252,3.62183127,3339.3,3338.5,0.299]
[1732275646675,3.62183127,3339.3,3337.7,0.01976135]
[1732275646852,3.62183127,3339.3,3338.0,0.299]
[1732275647057,0.62719127,3339.3,3338.0,0.299]
[1732275647258,3.2774027,3339.4,3338.0,0.299]
[1732275648558,2.99451,3339.5,3338.0,0.299]
[1732275648757,2.99456,3339.4,3338.0,0.299]
[1732275649160,2.99445,3339.6,3338.0,0.32895]
[1732275649586,3.98753497,3339.7,3338.0,0.32895]
[1732275649801,2.99443,3339.6,3338.0,0.299]
[1732275650099,2.99446,3339.5,3337.9,0.3289518]
[1732275651104,2.99457,3339.4,3337.9,0.3289518]
[1732275651405,3.2774027,3339.0,3338.1,0.299]
[1732275652084,2.9951,3338.8,3338.1,0.299]
[1732275652287,2.9951,3338.8,3337.4,0.299]
[1732275652495,2.99519,3338.7,3337.4,0.299]
[1732275652861,2.99528,3338.6,3337.4,0.299]
[1732275653319,2.99528,3338.6,3336.9,3.68274027]
[1732275653320,2.99528,3338.6,3337.0,0.299]
[1732275653601,2.99528,3338.6,3337.0,1.03738725]
[1732275653797,2.99528,3338.6,3337.0,1.06727584]
[1732275654172,3.2774027,3338.7,3337.4,0.299]
[1732275654381,6.2723527,3339.0,3337.4,0.299]
[1732275654590,3.41203991,3338.9,3337.4,0.299]
[1732275655318,3.2774027,3339.0,3337.6,0.299]
[1732275656298,3.2774027,3339.0,3337.5,0.32895649]
[1732275656896,6.2723027,3339.0,3337.5,0.32895649]
[1732275657212,3.2774027,3339.3,3337.7,0.299]
[1732275657409,3.2774027,3339.3,3337.8,0.02995472]
[1732275657605,3.2774027,3339.3,3337.9,0.299]
[1732275657905,3.2774027,3339.3,3337.9,0.32895316]
[1732275658104,3.2774027,3339.3,3337.9,0.299]
[1732275658308,2.99477,3339.2,3337.9,0.299]
[1732275658799,2.99485,3339.1,3337.9,0.299]
[1732275659506,2.99484,3339.1,3337.9,0.299]
[1732275659669,2.99484,3339.1,3337.7,0.299]
[1732275660387,6.59983297,3339.3,3337.7,0.299]
[1732275660693,6.59983297,3339.3,3337.6,0.02995318]
[1732275660884,2.99488,3339.1,3337.7,0.299]
[1732275661990,2.99488,3339.1,3337.6,0.02995494]
[1732275662178,3.2774027,3339.0,3337.5,0.32895494]
[1732275662378,0.4770586,3338.9,3337.5,0.32895494]
[1732275662573,6.2721027,3339.3,3337.5,0.32895494]
[1732275662774,3.2774027,3339.3,3337.5,0.32895494]
[1732275663009,6.2721027,3339.3,3337.5,0.32895494]
[1732275663174,6.2721027,3339.3,3337.7,0.299]
[1732275664074,3.2774027,3339.3,3337.8,0.02995341]
[1732275664372,3.2774027,3339.6,3338.1,0.299]
[1732275664596,3.2774027,3339.6,3338.1,0.32895133]
[1732275664810,3.2774027,3339.6,3338.3,0.299]
[1732275665909,3.2774027,3339.6,3338.1,0.299]
[1732275666273,3.2774027,3339.6,3338.3,0.299]
[1732275667210,3.2774027,3339.6,3338.2,0.299]
[1732275667417,3.2774027,3339.6,3338.4,0.299]
[1732275668294,6.2718327,3339.6,3338.0,0.299]
[1732275668782,2.99455,3339.4,3338.0,0.299]
[1732275668981,0.44179344,3339.4,3338.0,0.299]
[1732275669207,2.99446,3339.5,3338.0,0.299]
[1732275669391,3.2774027,3339.6,3338.1,0.02995161]
[1732275669593,3.2774027,3339.9,3338.4,0.299]
[1732275669778,6.2715527,3339.9,3338.4,0.299]
[1732275669985,0.71047527,3339.8,3338.4,0.299]
[1732275670521,0.71047527,3339.8,3338.5,0.02994838]
[1732275670690,3.2774027,3340.2,3338.5,0.02994838]
[1732275670895,3.2774027,3340.2,3338.6,0.299]
[1732275671089,3.2774027,3340.2,3338.7,0.02994556]
[1732275671418,3.2774027,3340.2,3338.6,0.299]
[1732275671419,2.99402,3340.0,3338.6,0.299]
[1732275671631,6.2715527,3339.9,3338.6,0.299]
[1732275671783,2.99439,3339.6,3338.6,0.299]
[1732275672117,2.99439,3339.6,3338.1,0.3289457]
[1732275672118,3.2774027,3339.6,3338.1,0.3289457]
[1732275672304,3.2774027,3339.6,3338.3,0.299]
[1732275672514,3.90456297,3339.6,3338.3,0.299]
[1732275672817,6.2717727,3339.6,3338.3,0.299]
[1732275673420,3.2774027,3339.6,3338.3,0.299]
[1732275673792,6.2718227,3339.6,3338.3,0.299]
[1732275674003,2.99447,3339.5,3338.3,0.299]
[1732275674209,3.2774027,3339.3,3338.3,0.299]
[1732275674533,3.2774027,3339.3,3338.0,0.299]
[1732275674534,6.2720927,3339.3,3338.0,0.299]
[1732275674700,2.99448,3339.5,3338.0,0.299]
[1732275674701,3.0,3339.5,3338.0,0.299]
[1732275674906,3.0,3339.5,3338.1,0.02995154]
[1732275675106,3.2774027,3339.6,3338.2,0.299]
[1732275675302,3.2774027,3339.9,3338.3,0.02994921]
[1732275675936,2.99424,3339.8,3338.3,0.02994921]
[1732275676102,2.99424,3339.8,3338.3,0.32894921]
[1732275676305,0.7843,3340.9,3338.7,0.299]
[1732275676505,7.2529947,3340.9,3339.3,0.299]
[1732275676719,4.0617027,3340.9,3339.5,0.299]
[1732275677032,4.0617027,3340.9,3339.6,0.02994034]
[1732275677033,7.0549827,3340.9,3339.6,0.02994034]
[1732275677198,0.40617027,3340.8,3339.5,0.299]
[1732275677393,3.2774027,3340.6,3339.5,0.299]
[1732275677632,2.99361,3340.5,3339.5,0.299]
[1732275677893,0.92645127,3340.4,3339.1,0.299]
[1732275678095,6.2709027,3340.6,3339.1,0.299]
[1732275678535,9.2644527,3340.6,3339.1,0.299]
[1732275678699,9.2644527,3340.6,3339.1,0.84725986]
[1732275678700,6.2709027,3340.6,3339.1,0.84725986]
[1732275678900,10.309923,3340.6,3339.3,0.299]
[1732275679093,4.322873,3340.6,3339.3,0.299]
[1732275679299,3.2774027,3340.6,3339.3,0.299]
[1732275680530,2.99364,3340.5,3339.3,0.299]
[1732275682506,3.2774027,3340.3,3339.3,0.299]
[1732275682818,3.2774027,3340.3,3339.4,0.299]
[1732275683227,0.62711127,3340.2,3339.4,0.299]
[1732275683423,3.2774027,3340.0,3339.4,0.299]
[1732275683624,3.2774027,3340.0,3338.8,0.299]
[1732275684738,3.2774027,3340.0,3338.6,0.02994201]
[1732275684739,3.2774027,3340.0,3338.6,0.32894201]
[1732275684904,3.2774027,3340.0,3338.8,0.299]
[1732275686046,3.2774027,3340.0,3338.6,0.3289449]
[1732275686341,3.2774027,3340.0,3338.8,0.299]
[1732275687332,3.2774027,3340.3,3338.8,0.299]
[1732275687501,3.2774027,3340.3,3339.0,0.299]
[1732275687701,3.2774027,3340.3,3339.1,0.02994292]
[1732275687907,3.2774027,3340.3,3339.0,0.32894224]
[1732275688503,3.2774027,3340.3,3339.1,0.299]
[1732275689507,3.2774027,3340.3,3339.2,0.299]
[1732275689712,3.90449997,3340.3,3339.2,0.299]
[1732275690152,2.99385,3340.2,3339.2,0.299]
[1732275690548,2.99385,3340.2,3339.1,0.299]
[1732275690733,3.2774027,3340.0,3339.1,0.299]
[1732275691057,6.2714927,3340.0,3339.1,0.299]
[1732275691223,2.9941,3339.9,3339.1,0.299]
[1732275691552,0.68983,3340.2,3338.3,0.32894503]
[1732275691553,6.2719827,3339.4,3338.3,0.32894503]
[1732275691773,6.2719527,3339.4,3338.3,0.299]
[1732275691942,2.99475,3339.2,3338.3,0.299]
[1732275692131,6.2719527,3339.4,3338.3,0.299]
[1732275692659,6.2719527,3339.4,3337.9,0.32894637]
[1732275692660,3.2774027,3339.4,3337.9,0.32894637]
[1732275693033,3.2774027,3339.4,3338.1,0.299]
[1732275693331,2.99393,3340.1,3338.5,0.299]
[1732275693332,3.2774027,3340.0,3338.5,0.299]
[1732275693528,2.99415,3339.9,3338.5,0.299]
[1732275693759,2.99436,3339.7,3338.5,0.47700033]
[1732275693925,2.99417,3339.9,3338.5,0.50694881]
[1732275694122,2.99417,3339.9,3338.5,0.47700033]
[1732275694316,3.92072127,3339.9,3338.5,0.47700033]
[1732275694744,0.92655127,3339.9,3338.5,0.47700033]
[1732275695021,3.92071127,3339.9,3338.5,0.47700033]
[1732275695244,2.9942,3339.8,3338.5,0.47700033]
[1732275695519,3.2774027,3339.7,3338.5,0.47700033]
[1732275696573,4.28711697,3339.7,3338.5,3.47700033]
[1732275696865,2.99448,3339.5,3338.5,0.47700033]
[1732275697261,4.28711697,3339.7,3338.5,0.47700033]
[1732275697435,3.8056837,3339.6,3338.5,0.47700033]
[1732275697639,0.8112837,3339.6,3338.6,0.02995053]
[1732275697873,3.2774027,3339.7,3338.6,0.0299492]
[1732275698051,3.2774027,3339.7,3338.5,0.47700033]
[1732275698360,3.2774027,3339.7,3338.5,0.5069494]
[1732275699044,3.2774027,3339.7,3338.5,0.47700033]
[1732275699366,3.81915,3340.4,3338.9,0.299]
[1732275699564,3.2774027,3340.1,3339.1,0.299]
[1732275700665,3.2774027,3340.1,3338.9,0.299]
[1732275701238,0.681265,3340.4,3338.9,0.299]
[1732275701447,3.2774027,3340.3,3339.1,0.299]
[1732275704551,3.2774027,3340.3,3338.9,0.299]
[1732275704747,3.2774027,3340.3,3339.1,0.299]
[1732275705653,6.2712027,3340.3,3338.9,0.299]
[1732275705849,3.2774027,3339.9,3339.1,0.299]
[1732275707075,2.9938,3340.3,3338.4,0.55]
[1732275707076,3.2774027,3340.3,3338.4,0.55]
[1732275707374,3.2774027,3340.3,3338.9,0.299]
[1732275707575,0.32774027,3340.2,3338.9,0.32894303]
[1732275707817,0.32774027,3340.2,3338.9,0.299]
[1732275708383,0.32774027,3340.2,3338.7,0.299]
[1732275708545,3.2774027,3340.3,3338.8,0.02994304]
[1732275708745,3.2774027,3340.3,3338.9,0.299]
[1732275709483,6.2711427,3340.3,3338.9,0.299]
[1732275709646,2.99385,3340.2,3338.6,0.299]
[1732275709948,3.92033427,3340.2,3338.8,0.849]
[1732275710153,0.92648427,3340.2,3338.8,0.849]
[1732275710376,3.2774027,3339.9,3338.8,3.849]
[1732275710573,3.2774027,3339.9,3338.8,0.849]
[1732275710779,3.2774027,3339.9,3338.8,3.299]
[1732275710979,3.2774027,3339.9,3338.2,0.02994556]
[1732275711142,3.2774027,3339.6,3338.1,0.32894702]
[1732275711898,6.2718327,3339.6,3338.1,0.299]
[1732275712395,3.2774027,3339.0,3338.1,0.299]
[1732275712776,3.90461997,3339.0,3338.1,0.299]
[1732275713079,3.2774027,3338.7,3338.1,0.299]
[1732275715061,3.2774027,3338.7,3338.0,0.2766]
[1732275715762,7.0416827,3339.0,3338.0,0.2766]
[1732275716276,3.2774027,3339.0,3338.0,0.2766]
[1732275717005,2.99501,3338.9,3338.0,0.2766]
[1732275717298,3.2774027,3338.7,3338.0,0.2766]
[1732275718313,3.2774027,3339.0,3338.0,0.2766]
[1732275719519,3.2774027,3339.0,3338.0,0.5756]
[1732275720082,4.20409197,3339.0,3338.0,0.5756]
[1732275720985,7.19906197,3339.0,3338.0,0.5756]
[1732275721181,2.99502,3338.9,3338.0,0.5756]
[1732275721490,7.19902197,3339.0,3338.0,0.5756]
[1732275721820,6.2723327,3339.0,3338.0,0.5756]
[1732275721994,3.2774027,3338.7,3338.0,0.5756]
[1732275722610,3.2774027,3338.4,3338.0,0.5756]
[1732275723986,3.2774027,3338.7,3338.0,0.5756]
[1732275724187,6.2726327,3338.7,3338.0,0.5756]
[1732275725482,2.99535,3338.6,3338.0,0.5756]
[1732275726410,6.2728627,3338.4,3338.0,0.5756]
[1732275727130,3.2774027,3338.4,3338.0,0.5756]
[1732275727314,3.90467697,3338.4,3338.0,0.5756]
[1732275727501,2.99554,3338.3,3338.0,0.2766]
[1732275727701,6.90020697,3338.4,3338.0,0.2766]
[1732275728116,2.99556,3338.3,3338.0,0.2766]
[1732275728297,3.2774027,3338.1,3338.0,0.2766]
[1732275728621,6.2731127,3338.1,3338.0,0.2766]
[1732275731512,7.0668127,3338.1,3338.0,0.2766]
[1732275733529,6.2731127,3338.1,3338.0,0.2766]
[1732275736909,7.0488127,3338.1,3338.0,0.2766]
[1732275737110,8.53071764,3338.1,3338.0,0.2766]
[1732275741460,4.75930764,3338.1,3338.0,0.2766]
[1732275741627,3.2774027,3338.1,3338.0,0.2766]
[1732275742564,6.2731127,3338.1,3338.0,0.2766]
[1732275742775,3.2774027,3338.1,3338.0,0.2766]
[1732275743460,3.2774027,3338.5,3338.0,0.2766]
[1732275745454,3.2774027,3338.2,3338.0,0.2766]
[1732275751456,0.7749,3338.7,3338.0,0.5756]
[1732275751457,3.2774027,3338.5,3338.0,0.5756]
[1732275753925,3.2774027,3338.2,3338.0,0.5756]
[1732275756227,0.32774027,3338.1,3338.0,0.5756]
[1732275756750,3.2774027,3338.2,3338.0,0.5756]